[Event "Betsys MČR v online bleskovém šachu 2021"]
[Site "Chess.com"]
[Date "2021.04.17"]
[Round "8"]
[White "horvi1"]
[Black "Filipdol"]
[Result "1-0"]
[WhiteElo "2239"]
[BlackElo "1908"]
[TimeControl "180+1"]
[EndTime "10:20:44 PDT"]
[Termination "Uživatel horvi1 zvítězil po vzdání soupeře"]

1. e4 {[%clk 0:03:00.9]} 1... c5 {[%clk 0:02:58.1]} 2. Nf3 {[%clk 0:02:59.8]}
2... a6 {[%clk 0:02:58.1]} 3. d4 {[%clk 0:02:59.5]} 3... cxd4 {[%clk 0:02:58.2]}
4. Nxd4 {[%clk 0:03:00]} 4... Nf6 {[%clk 0:02:57.9]} 5. Nc3 {[%clk 0:02:57.7]}
5... e5 {[%clk 0:02:57.7]} 6. Nf3 {[%clk 0:02:53.6]} 6... Bb4 {[%clk 0:02:56.7]}
7. Bc4 {[%clk 0:02:49.7]} 7... Qc7 {[%clk 0:02:55.7]} 8. Qd3 {[%clk 0:02:42.1]}
8... d5 {[%clk 0:02:43.9]} 9. Bxd5 {[%clk 0:02:23.6]} 9... Nxd5 {[%clk
0:02:37.9]} 10. exd5 {[%clk 0:02:21.4]} 10... f5 {[%clk 0:02:06.9]} 11. Bd2
{[%clk 0:02:00.6]} 11... O-O {[%clk 0:01:49.3]} 12. Qe2 {[%clk 0:01:36.2]} 12...
e4 {[%clk 0:01:34]} 13. Nd4 {[%clk 0:01:35.1]} 13... Qe5 {[%clk 0:01:29.8]} 14.
Qc4 {[%clk 0:01:30.8]} 14... Bd6 {[%clk 0:01:16.6]} 15. Nce2 {[%clk 0:01:18.1]}
15... b5 {[%clk 0:01:08.9]} 16. Qb3 {[%clk 0:01:16.4]} 16... f4 {[%clk 0:01:00]}
17. O-O-O {[%clk 0:01:04.3]} 17... Bb7 {[%clk 0:00:44.1]} 18. Nc6 {[%clk
0:00:56]} 18... Bxc6 {[%clk 0:00:27.9]} 19. dxc6+ {[%clk 0:00:55.7]} 19... Kh8
{[%clk 0:00:28.5]} 20. Bc3 {[%clk 0:00:55.9]} 20... Qe7 {[%clk 0:00:23.5]} 21.
Qd5 {[%clk 0:00:53.9]} 21... Rf6 {[%clk 0:00:12.1]} 22. Bxf6 {[%clk 0:00:52.4]}
22... Qxf6 {[%clk 0:00:08.9]} 23. c7 {[%clk 0:00:48.5]} 23... Bxc7 {[%clk
0:00:07.2]} 24. Qxa8 {[%clk 0:00:48.1]} 24... Be5 {[%clk 0:00:04.8]} 25. Kb1
{[%clk 0:00:43.4]} 25... f3 {[%clk 0:00:05]} 26. Qd5 {[%clk 0:00:36.4]} 26... h6
{[%clk 0:00:04.7]} 27. Qd8+ {[%clk 0:00:36]} 27... Kh7 {[%clk 0:00:04.5]} 28.
Qxf6 {[%clk 0:00:35.2]} 28... Bxf6 {[%clk 0:00:05.4]} 29. gxf3 {[%clk
0:00:34.5]} 29... exf3 {[%clk 0:00:06.3]} 1-0

[Event "Betsys MČR v online bleskovém šachu 2021"]
[Site "Chess.com"]
[Date "2021.04.17"]
[Round "8"]
[White "TheFr0zenSun"]
[Black "Krejcak"]
[Result "1-0"]
[WhiteElo "2251"]
[BlackElo "2013"]
[TimeControl "180+1"]
[EndTime "10:20:47 PDT"]
[Termination "Uživatel TheFr0zenSun zvítězil po vzdání soupeře"]

1. d4 {[%clk 0:02:54.4]} 1... Nf6 {[%clk 0:02:59.6]} 2. Nf3 {[%clk 0:02:52.2]}
2... g6 {[%clk 0:02:59.5]} 3. c4 {[%clk 0:02:50.8]} 3... Bg7 {[%clk 0:02:59.6]}
4. Nc3 {[%clk 0:02:51.4]} 4... O-O {[%clk 0:02:58.6]} 5. e4 {[%clk 0:02:51.2]}
5... d6 {[%clk 0:02:58.8]} 6. Be2 {[%clk 0:02:50.4]} 6... c5 {[%clk 0:02:58.7]}
7. d5 {[%clk 0:02:48]} 7... b5 {[%clk 0:02:58.3]} 8. cxb5 {[%clk 0:02:46.4]}
8... a6 {[%clk 0:02:58.2]} 9. O-O {[%clk 0:02:40.8]} 9... axb5 {[%clk
0:02:56.6]} 10. Bxb5 {[%clk 0:02:40]} 10... Ba6 {[%clk 0:02:57.1]} 11. Bxa6
{[%clk 0:02:28.8]} 11... Nxa6 {[%clk 0:02:56.4]} 12. Bg5 {[%clk 0:02:25.8]}
12... h6 {[%clk 0:02:54.4]} 13. Bf4 {[%clk 0:02:24.2]} 13... Nh5 {[%clk
0:02:49]} 14. Be3 {[%clk 0:02:21.6]} 14... Qb6 {[%clk 0:02:47.3]} 15. Qd2 {[%clk
0:02:21.3]} 15... Kh7 {[%clk 0:02:45.3]} 16. Rab1 {[%clk 0:02:08.2]} 16... Rfb8
{[%clk 0:02:43.3]} 17. a3 {[%clk 0:01:53.5]} 17... Nc7 {[%clk 0:02:33.1]} 18. b4
{[%clk 0:01:45.8]} 18... Rxa3 {[%clk 0:02:25.3]} 19. bxc5 {[%clk 0:01:45.8]}
19... Bxc3 {[%clk 0:02:17.5]} 20. Rxb6 {[%clk 0:01:38.9]} 20... Bxd2 {[%clk
0:02:08.2]} 21. Rxb8 {[%clk 0:01:25.8]} 21... Bxe3 {[%clk 0:02:07.7]} 22. cxd6
{[%clk 0:01:16.1]} 22... exd6 {[%clk 0:01:57.1]} 23. fxe3 {[%clk 0:01:15.2]}
23... Rxe3 {[%clk 0:01:54.1]} 24. Rb7 {[%clk 0:01:12.6]} 24... Ne8 {[%clk
0:01:41.3]} 25. Rxf7+ {[%clk 0:01:08.7]} 25... Neg7 {[%clk 0:01:41]} 26. g4
{[%clk 0:00:49.5]} 26... Kg8 {[%clk 0:01:32.6]} 27. Nd2 {[%clk 0:00:44.4]} 27...
Re2 {[%clk 0:01:22.2]} 28. R7f2 {[%clk 0:00:43.6]} 28... Nf4 {[%clk 0:01:18.9]}
29. Rxf4 {[%clk 0:00:37]} 29... Rxd2 {[%clk 0:01:18.4]} 30. Rf6 {[%clk 0:00:37]}
30... Re2 {[%clk 0:01:12.8]} 31. Rxd6 {[%clk 0:00:31.3]} 31... Rxe4 {[%clk
0:01:12.6]} 32. Rxg6 {[%clk 0:00:31.3]} 32... Kh7 {[%clk 0:01:10.5]} 33. Rff6
{[%clk 0:00:30.6]} 33... Rd4 {[%clk 0:01:03.1]} 34. d6 {[%clk 0:00:25.4]} 34...
Kg8 {[%clk 0:01:01.9]} 35. h3 {[%clk 0:00:20.6]} 35... Rd3 {[%clk 0:00:59.2]}
36. Kg2 {[%clk 0:00:20.8]} 36... Rd4 {[%clk 0:00:49.3]} 37. Rxh6 {[%clk
0:00:21.3]} 1-0

[Event "Betsys MČR v online bleskovém šachu 2021"]
[Site "Chess.com"]
[Date "2021.04.17"]
[Round "8"]
[White "PaulS_CR"]
[Black "FrantisekP"]
[Result "0-1"]
[WhiteElo "1833"]
[BlackElo "1639"]
[TimeControl "180+1"]
[EndTime "10:20:49 PDT"]
[Termination "Uživatel FrantisekP zvítězil po vzdání soupeře"]

1. Nf3 {[%clk 0:02:54.6]} 1... c5 {[%clk 0:02:58.4]} 2. g3 {[%clk 0:02:50.5]}
2... Nc6 {[%clk 0:02:58.2]} 3. Bg2 {[%clk 0:02:50.3]} 3... g6 {[%clk 0:02:58.3]}
4. O-O {[%clk 0:02:48.8]} 4... Bg7 {[%clk 0:02:58.7]} 5. c4 {[%clk 0:02:48.2]}
5... Nf6 {[%clk 0:02:57.7]} 6. Nc3 {[%clk 0:02:47]} 6... O-O {[%clk 0:02:56]} 7.
d3 {[%clk 0:02:40.5]} 7... d6 {[%clk 0:02:56.2]} 8. Bg5 {[%clk 0:02:38.4]} 8...
h6 {[%clk 0:02:55.2]} 9. Bd2 {[%clk 0:02:34.3]} 9... Bd7 {[%clk 0:02:54.4]} 10.
a3 {[%clk 0:02:34.1]} 10... a6 {[%clk 0:02:54.5]} 11. e3 {[%clk 0:02:30.4]}
11... Rb8 {[%clk 0:02:54.5]} 12. Qc2 {[%clk 0:02:26.7]} 12... Qc7 {[%clk
0:02:38.7]} 13. Nd5 {[%clk 0:02:21.5]} 13... Qd8 {[%clk 0:02:25.1]} 14. Rab1
{[%clk 0:02:16.7]} 14... Nxd5 {[%clk 0:02:18]} 15. cxd5 {[%clk 0:02:15.4]} 15...
Ne5 {[%clk 0:02:14.2]} 16. Nxe5 {[%clk 0:02:14.6]} 16... Bxe5 {[%clk 0:02:13.1]}
17. b4 {[%clk 0:02:12.1]} 17... b6 {[%clk 0:02:00.4]} 18. Bc3 {[%clk 0:02:00.2]}
18... Bg7 {[%clk 0:01:56.4]} 19. Bxg7 {[%clk 0:01:57.3]} 19... Kxg7 {[%clk
0:01:57.3]} 20. Qc3+ {[%clk 0:01:56.8]} 20... Kh7 {[%clk 0:01:54.9]} 21. Rfc1
{[%clk 0:01:55.9]} 21... Bf5 {[%clk 0:01:38.1]} 22. e4 {[%clk 0:01:53.7]} 22...
Bd7 {[%clk 0:01:37.8]} 23. f4 {[%clk 0:01:51]} 23... cxb4 {[%clk 0:01:27.1]} 24.
axb4 {[%clk 0:01:46.9]} 24... b5 {[%clk 0:01:27.2]} 25. Qd4 {[%clk 0:01:45.3]}
25... a5 {[%clk 0:01:04.7]} 26. bxa5 {[%clk 0:01:43.6]} 26... Qxa5 {[%clk
0:01:03.7]} 27. Rb4 {[%clk 0:01:42.7]} 27... Rfc8 {[%clk 0:00:58.2]} 28. Ra1
{[%clk 0:01:26.8]} 28... Qc7 {[%clk 0:00:49.8]} 29. h4 {[%clk 0:01:13.6]} 29...
Qc5 {[%clk 0:00:35.8]} 30. Ra7 {[%clk 0:01:11.6]} 30... Qxd4+ {[%clk 0:00:25.9]}
31. Rxd4 {[%clk 0:01:10.8]} 31... b4 {[%clk 0:00:22]} 32. Ra2 {[%clk 0:01:09.8]}
32... b3 {[%clk 0:00:22]} 33. Rb2 {[%clk 0:01:09]} 33... Rc1+ {[%clk 0:00:19.6]}
34. Kh2 {[%clk 0:01:07.3]} 34... Rc2 {[%clk 0:00:20.5]} 35. Rb1 {[%clk
0:01:02.2]} 35... b2 {[%clk 0:00:20.7]} 36. Rc4 {[%clk 0:01:02.1]} 36... Rxc4
{[%clk 0:00:18]} 37. dxc4 {[%clk 0:01:01.3]} 37... Ba4 {[%clk 0:00:18.2]} 38. c5
{[%clk 0:00:49]} 38... Bc2 {[%clk 0:00:16.4]} 0-1

[Event "Betsys MČR v online bleskovém šachu 2021"]
[Site "Chess.com"]
[Date "2021.04.17"]
[Round "8"]
[White "Richter_Rudolf"]
[Black "rakintsev"]
[Result "1/2-1/2"]
[WhiteElo "1379"]
[BlackElo "1739"]
[TimeControl "180+1"]
[EndTime "10:20:50 PDT"]
[Termination "Remíza dohodou"]

1. d4 {[%clk 0:03:00.6]} 1... d5 {[%clk 0:02:57.6]} 2. c4 {[%clk 0:03:00.1]}
2... c6 {[%clk 0:02:57.4]} 3. cxd5 {[%clk 0:03:00]} 3... cxd5 {[%clk 0:02:56.4]}
4. Nc3 {[%clk 0:02:57.5]} 4... Nf6 {[%clk 0:02:55.2]} 5. Bf4 {[%clk 0:02:53.9]}
5... Bf5 {[%clk 0:02:51.9]} 6. e3 {[%clk 0:02:51.1]} 6... e6 {[%clk 0:02:51.5]}
7. Qb3 {[%clk 0:02:49.2]} 7... Qb6 {[%clk 0:02:46.8]} 8. Bb5+ {[%clk 0:02:46.6]}
8... Nbd7 {[%clk 0:02:42.3]} 9. Nf3 {[%clk 0:02:24.9]} 9... Be7 {[%clk
0:02:29.4]} 10. O-O {[%clk 0:02:23.8]} 10... O-O {[%clk 0:02:27.6]} 11. Rfc1
{[%clk 0:02:10.9]} 11... a6 {[%clk 0:02:04.1]} 12. Bxd7 {[%clk 0:01:54.6]} 12...
Qxb3 {[%clk 0:02:02.8]} 13. axb3 {[%clk 0:01:53.1]} 13... Nxd7 {[%clk
0:02:02.1]} 14. Na4 {[%clk 0:01:51.3]} 14... Rac8 {[%clk 0:01:44.1]} 15. Ne5
{[%clk 0:01:42.7]} 15... Nxe5 {[%clk 0:01:36.1]} 16. Bxe5 {[%clk 0:01:38.8]}
16... f6 {[%clk 0:01:35.4]} 17. Bc7 {[%clk 0:01:29.7]} 17... Bd8 {[%clk
0:00:44]} 18. Bxd8 {[%clk 0:01:22.1]} 18... Rfxd8 {[%clk 0:00:41.7]} 19. Nb6
{[%clk 0:01:21.3]} 19... Rc2 {[%clk 0:00:28.5]} 20. Rxc2 {[%clk 0:01:16.4]}
20... Bxc2 {[%clk 0:00:27.7]} 21. Rc1 {[%clk 0:01:15.6]} 21... Bxb3 {[%clk
0:00:27.3]} 22. Rc7 {[%clk 0:01:09.7]} 22... Rb8 {[%clk 0:00:20.1]} 23. Nd7
{[%clk 0:01:08.1]} 23... Rd8 {[%clk 0:00:18.3]} 24. Rxb7 {[%clk 0:01:08.3]}
24... Ba4 {[%clk 0:00:18.2]} 25. Nb6 {[%clk 0:01:05.6]} 25... Bb5 {[%clk
0:00:18.1]} 26. Rc7 {[%clk 0:01:02.7]} 26... Rb8 {[%clk 0:00:16.9]} 27. Rc8+
{[%clk 0:00:57.6]} 27... Rxc8 {[%clk 0:00:16.1]} 28. Nxc8 {[%clk 0:00:57.4]}
28... Kf7 {[%clk 0:00:14]} 29. Nd6+ {[%clk 0:00:57.1]} 29... Ke7 {[%clk
0:00:13.5]} 30. Nxb5 {[%clk 0:00:55.7]} 30... axb5 {[%clk 0:00:13.4]} 31. b4
{[%clk 0:00:55.8]} 31... Kf7 {[%clk 0:00:11.7]} 32. f4 {[%clk 0:00:53.9]} 32...
e5 {[%clk 0:00:10]} 33. Kf2 {[%clk 0:00:52.5]} 33... exd4 {[%clk 0:00:09.5]} 34.
exd4 {[%clk 0:00:52]} 34... Ke6 {[%clk 0:00:09.6]} 35. g4 {[%clk 0:00:51.5]}
35... g5 {[%clk 0:00:08.6]} 36. f5+ {[%clk 0:00:50.1]} 36... Kd6 {[%clk
0:00:08.1]} 37. Kf3 {[%clk 0:00:49.7]} 37... h6 {[%clk 0:00:07.4]} 1/2-1/2

[Event "Betsys MČR v online bleskovém šachu 2021"]
[Site "Chess.com"]
[Date "2021.04.17"]
[Round "8"]
[White "Tolja1"]
[Black "Mimochodem"]
[Result "1-0"]
[WhiteElo "2041"]
[BlackElo "1793"]
[TimeControl "180+1"]
[EndTime "10:20:51 PDT"]
[Termination "Uživatel Tolja1 zvítězil matem"]

1. Nf3 {[%clk 0:03:00.9]} 1... c5 {[%clk 0:02:59.5]} 2. c4 {[%clk 0:03:00.3]}
2... Nc6 {[%clk 0:02:59.3]} 3. Nc3 {[%clk 0:02:59.9]} 3... e6 {[%clk 0:02:58.9]}
4. g3 {[%clk 0:02:58.6]} 4... Nf6 {[%clk 0:02:59]} 5. Bg2 {[%clk 0:02:58.6]}
5... d5 {[%clk 0:02:58.4]} 6. cxd5 {[%clk 0:02:58.2]} 6... exd5 {[%clk 0:02:59]}
7. d4 {[%clk 0:02:57.6]} 7... Be6 {[%clk 0:02:58.1]} 8. O-O {[%clk 0:02:56.8]}
8... Rc8 {[%clk 0:02:53.7]} 9. Bg5 {[%clk 0:02:53.1]} 9... Be7 {[%clk 0:02:53]}
10. dxc5 {[%clk 0:02:47.2]} 10... h6 {[%clk 0:02:49.1]} 11. Bxf6 {[%clk
0:02:39.5]} 11... Bxf6 {[%clk 0:02:49.5]} 12. Rc1 {[%clk 0:02:39.5]} 12... O-O
{[%clk 0:02:47.1]} 13. a3 {[%clk 0:02:39]} 13... d4 {[%clk 0:02:37.8]} 14. Ne4
{[%clk 0:02:34.6]} 14... Ne5 {[%clk 0:02:28.1]} 15. Nxf6+ {[%clk 0:02:24.3]}
15... Qxf6 {[%clk 0:02:27]} 16. Nxd4 {[%clk 0:02:08.4]} 16... Rfd8 {[%clk
0:02:23.4]} 17. Qa4 {[%clk 0:02:00.8]} 17... b6 {[%clk 0:02:11.1]} 18. Nxe6
{[%clk 0:01:50.9]} 18... Qxe6 {[%clk 0:02:03.8]} 19. cxb6 {[%clk 0:01:49.4]}
19... axb6 {[%clk 0:02:00]} 20. Qb5 {[%clk 0:01:44]} 20... Rxc1 {[%clk 0:01:56]}
21. Rxc1 {[%clk 0:01:42.9]} 21... Rd6 {[%clk 0:01:56.2]} 22. Qb4 {[%clk
0:01:32.3]} 22... Nd7 {[%clk 0:01:52.2]} 23. Qc3 {[%clk 0:01:29.4]} 23... Qxe2
{[%clk 0:01:44.9]} 24. Qc8+ {[%clk 0:01:22.8]} 24... Kh7 {[%clk 0:01:43]} 25.
Qc2+ {[%clk 0:01:22.2]} 25... Qxc2 {[%clk 0:01:38]} 26. Rxc2 {[%clk 0:01:22.4]}
26... Kg6 {[%clk 0:01:30]} 27. h4 {[%clk 0:01:20.9]} 27... Kf6 {[%clk
0:01:28.7]} 28. Bf3 {[%clk 0:01:19.8]} 28... Ne5 {[%clk 0:01:26.9]} 29. Kg2
{[%clk 0:01:14.2]} 29... Nxf3 {[%clk 0:01:25]} 30. Kxf3 {[%clk 0:01:13.2]} 30...
h5 {[%clk 0:01:24.4]} 31. Rc4 {[%clk 0:01:06.4]} 31... g5 {[%clk 0:01:19.4]} 32.
hxg5+ {[%clk 0:01:05.5]} 32... Kxg5 {[%clk 0:01:19.7]} 33. Rb4 {[%clk
0:01:05.6]} 33... f5 {[%clk 0:01:18.7]} 34. a4 {[%clk 0:01:00]} 34... Rd3+
{[%clk 0:01:18.6]} 35. Ke2 {[%clk 0:00:55.3]} 35... Rd6 {[%clk 0:01:17]} 36. b3
{[%clk 0:00:54.4]} 36... Kf6 {[%clk 0:01:12.1]} 37. Kf3 {[%clk 0:00:52.5]} 37...
Kg5 {[%clk 0:01:11.7]} 38. Rb5 {[%clk 0:00:49.5]} 38... Rd3+ {[%clk 0:01:09.8]}
39. Ke2 {[%clk 0:00:49.2]} 39... Rd6 {[%clk 0:01:08.9]} 40. b4 {[%clk
0:00:37.6]} 40... Kg4 {[%clk 0:01:06.8]} 41. a5 {[%clk 0:00:34.9]} 41... bxa5
{[%clk 0:01:05.4]} 42. bxa5 {[%clk 0:00:35.2]} 42... Rd4 {[%clk 0:01:03.1]} 43.
Ke3 {[%clk 0:00:30.1]} 43... Ra4 {[%clk 0:01:03.2]} 44. Ke2 {[%clk 0:00:25.4]}
44... Ra2+ {[%clk 0:01:02.3]} 45. Kf1 {[%clk 0:00:24]} 45... Ra4 {[%clk
0:00:58.6]} 46. Kg2 {[%clk 0:00:23.7]} 46... f4 {[%clk 0:00:56]} 47. f3# {[%clk
0:00:19.6]} 1-0

[Event "Betsys MČR v online bleskovém šachu 2021"]
[Site "Chess.com"]
[Date "2021.04.17"]
[Round "8"]
[White "JuliliaR"]
[Black "vozmenmarcel"]
[Result "0-1"]
[WhiteElo "1291"]
[BlackElo "1860"]
[TimeControl "180+1"]
[EndTime "10:20:51 PDT"]
[Termination "Uživatel vozmenmarcel zvítězil po vzdání soupeře"]

1. d4 {[%clk 0:03:00.9]} 1... Nf6 {[%clk 0:02:58.1]} 2. c4 {[%clk 0:03:00.6]}
2... g6 {[%clk 0:02:56.8]} 3. Nc3 {[%clk 0:02:59.5]} 3... d5 {[%clk 0:02:57.1]}
4. cxd5 {[%clk 0:02:58.2]} 4... Nxd5 {[%clk 0:02:56.4]} 5. Nf3 {[%clk
0:02:52.6]} 5... Bg7 {[%clk 0:02:54.3]} 6. e4 {[%clk 0:02:43]} 6... Nxc3 {[%clk
0:02:52.8]} 7. bxc3 {[%clk 0:02:42.1]} 7... c5 {[%clk 0:02:53.3]} 8. Be3 {[%clk
0:02:38.4]} 8... Qa5 {[%clk 0:02:51]} 9. Qd2 {[%clk 0:02:37.5]} 9... O-O {[%clk
0:02:48.6]} 10. Be2 {[%clk 0:02:35]} 10... Nc6 {[%clk 0:02:47.5]} 11. Rd1 {[%clk
0:02:25.7]} 11... Bg4 {[%clk 0:02:40.5]} 12. h3 {[%clk 0:02:16.4]} 12... Bxf3
{[%clk 0:02:38.9]} 13. Bxf3 {[%clk 0:02:14.6]} 13... Rad8 {[%clk 0:02:35.5]} 14.
e5 {[%clk 0:02:04.4]} 14... cxd4 {[%clk 0:02:34.3]} 15. cxd4 {[%clk 0:02:02.7]}
15... Qxd2+ {[%clk 0:02:31.8]} 16. Rxd2 {[%clk 0:02:01.6]} 16... e6 {[%clk
0:02:29]} 17. Bxc6 {[%clk 0:01:56.5]} 17... bxc6 {[%clk 0:02:27.9]} 18. O-O
{[%clk 0:01:54.9]} 18... c5 {[%clk 0:02:27.4]} 19. dxc5 {[%clk 0:01:49.7]} 19...
Rxd2 {[%clk 0:02:26.1]} 20. Bxd2 {[%clk 0:01:48.8]} 20... Bxe5 {[%clk
0:02:25.6]} 21. Rc1 {[%clk 0:01:47.5]} 21... Rc8 {[%clk 0:02:24.5]} 22. Be3
{[%clk 0:01:44.1]} 22... Rc6 {[%clk 0:02:22.3]} 23. a4 {[%clk 0:01:41.2]} 23...
f5 {[%clk 0:02:19.4]} 24. f3 {[%clk 0:01:37.6]} 24... Kf7 {[%clk 0:02:18.1]} 25.
Kf2 {[%clk 0:01:36.4]} 25... Bf6 {[%clk 0:02:09.5]} 26. Ke2 {[%clk 0:01:34.6]}
26... Ke7 {[%clk 0:02:09.4]} 27. Kd3 {[%clk 0:01:29.6]} 27... Kd7 {[%clk
0:02:05.3]} 28. Kc4 {[%clk 0:01:28.2]} 28... Kc7 {[%clk 0:02:04.6]} 29. Kb5
{[%clk 0:01:25.8]} 29... a6+ {[%clk 0:02:03.4]} 30. Kb4 {[%clk 0:01:20]} 30...
e5 {[%clk 0:01:59]} 31. Rd1 {[%clk 0:01:14.7]} 31... Be7 {[%clk 0:01:57.9]} 32.
Bf2 {[%clk 0:01:08.5]} 32... Re6 {[%clk 0:01:56.4]} 33. Re1 {[%clk 0:01:02.2]}
33... e4 {[%clk 0:01:51.8]} 34. fxe4 {[%clk 0:01:01.4]} 34... fxe4 {[%clk
0:01:51.2]} 35. Be3 {[%clk 0:01:00.1]} 35... Kc6 {[%clk 0:01:49.9]} 36. Rf1
{[%clk 0:00:57.4]} 36... Re5 {[%clk 0:01:44.6]} 37. Bd4 {[%clk 0:00:49.7]} 37...
Bxc5+ {[%clk 0:01:36.2]} 38. Bxc5 {[%clk 0:00:45.9]} 38... Rxc5 {[%clk
0:01:35.9]} 39. Rf6+ {[%clk 0:00:45.6]} 39... Kd5 {[%clk 0:01:35.9]} 40. Rxa6
{[%clk 0:00:44.3]} 40... e3 {[%clk 0:01:34.9]} 41. Ra8 {[%clk 0:00:42.5]} 41...
Rc1 {[%clk 0:01:33.5]} 42. Re8 {[%clk 0:00:41.6]} 42... Kd4 {[%clk 0:01:33]} 43.
Rd8+ {[%clk 0:00:37.1]} 43... Ke4 {[%clk 0:01:31.6]} 44. a5 {[%clk 0:00:33]}
44... e2 {[%clk 0:01:30.1]} 45. Re8+ {[%clk 0:00:32.6]} 45... Kd3 {[%clk
0:01:30]} 46. Rd8+ {[%clk 0:00:31.4]} 46... Ke3 {[%clk 0:01:29.3]} 47. Re8+
{[%clk 0:00:31.1]} 47... Kf2 {[%clk 0:01:29.2]} 48. a6 {[%clk 0:00:20.9]} 48...
e1=Q+ {[%clk 0:01:27.3]} 49. Rxe1 {[%clk 0:00:19.4]} 49... Rxe1 {[%clk
0:01:26.8]} 50. Kb5 {[%clk 0:00:19]} 50... Ra1 {[%clk 0:01:24.4]} 51. Kb6 {[%clk
0:00:17.2]} 51... Kxg2 {[%clk 0:01:24.4]} 52. a7 {[%clk 0:00:15.8]} 52... Kxh3
{[%clk 0:01:24.2]} 53. Kb7 {[%clk 0:00:14.6]} 53... Rxa7+ {[%clk 0:01:23.9]} 54.
Kxa7 {[%clk 0:00:13.4]} 54... g5 {[%clk 0:01:24.1]} 0-1

[Event "Betsys MČR v online bleskovém šachu 2021"]
[Site "Chess.com"]
[Date "2021.04.17"]
[Round "8"]
[White "Hanicka1517"]
[Black "Klokan64"]
[Result "1-0"]
[WhiteElo "1626"]
[BlackElo "1415"]
[TimeControl "180+1"]
[EndTime "10:20:52 PDT"]
[Termination "Uživatel Hanicka1517 zvítězil na čas"]

1. d4 {[%clk 0:03:00.9]} 1... d6 {[%clk 0:02:58]} 2. Nf3 {[%clk 0:03:00.9]} 2...
Nf6 {[%clk 0:02:55.4]} 3. g3 {[%clk 0:03:01.1]} 3... c6 {[%clk 0:02:55]} 4. Bg2
{[%clk 0:03:01.2]} 4... Bg4 {[%clk 0:02:53.8]} 5. O-O {[%clk 0:03:01.1]} 5...
Qd7 {[%clk 0:02:50.7]} 6. c4 {[%clk 0:03:01.2]} 6... h5 {[%clk 0:02:38.8]} 7.
Nc3 {[%clk 0:02:55.9]} 7... Bh3 {[%clk 0:02:36]} 8. e4 {[%clk 0:02:53.1]} 8...
h4 {[%clk 0:02:07.7]} 9. Nxh4 {[%clk 0:02:48.1]} 9... Bxg2 {[%clk 0:01:58.4]}
10. Kxg2 {[%clk 0:02:42.7]} 10... Ng4 {[%clk 0:01:43.2]} 11. e5 {[%clk 0:02:35]}
11... dxe5 {[%clk 0:01:36.4]} 12. dxe5 {[%clk 0:02:34.4]} 12... Qxd1 {[%clk
0:01:35.1]} 13. Rxd1 {[%clk 0:02:33.8]} 13... Nxe5 {[%clk 0:01:33.5]} 14. b3
{[%clk 0:02:29.1]} 14... e6 {[%clk 0:01:32]} 15. Bb2 {[%clk 0:02:26.5]} 15...
Bc5 {[%clk 0:01:29.4]} 16. Ne4 {[%clk 0:02:24]} 16... Bb6 {[%clk 0:01:24.8]} 17.
c5 {[%clk 0:02:21.7]} 17... Bc7 {[%clk 0:01:24.5]} 18. Nd6+ {[%clk 0:02:19.6]}
18... Ke7 {[%clk 0:01:20.7]} 19. Bxe5 {[%clk 0:02:18.6]} 19... Nd7 {[%clk
0:01:18.9]} 20. Bf4 {[%clk 0:02:05.7]} 20... Nxc5 {[%clk 0:01:16.7]} 21. Rac1
{[%clk 0:01:56.1]} 21... Nd7 {[%clk 0:01:05.5]} 22. Nf3 {[%clk 0:01:50.4]} 22...
Rh5 {[%clk 0:00:55]} 23. Nxb7 {[%clk 0:01:33.7]} 23... Rah8 {[%clk 0:00:48.9]}
24. Bxc7 {[%clk 0:01:29.9]} 24... Nf6 {[%clk 0:00:39.5]} 25. Bd6+ {[%clk
0:01:27.4]} 25... Ke8 {[%clk 0:00:37.5]} 26. Rxc6 {[%clk 0:01:25.4]} 26... Ng4
{[%clk 0:00:36.5]} 27. Rc8+ {[%clk 0:01:23.2]} 27... Kd7 {[%clk 0:00:32]} 28.
Rxh8 {[%clk 0:01:22.4]} 28... Rxh8 {[%clk 0:00:30.6]} 29. Ba3+ {[%clk
0:01:18.1]} 29... Kc6 {[%clk 0:00:30.2]} 30. Nc5 {[%clk 0:01:15]} 30... e5
{[%clk 0:00:26]} 31. Ne4 {[%clk 0:01:14.3]} 31... f5 {[%clk 0:00:24.8]} 32. Rc1+
{[%clk 0:01:13.2]} 32... Kd5 {[%clk 0:00:22]} 33. Nc3+ {[%clk 0:01:12.5]} 33...
Ke6 {[%clk 0:00:19.7]} 34. Ng5+ {[%clk 0:01:08.4]} 34... Kf6 {[%clk 0:00:18.3]}
35. h4 {[%clk 0:01:08.1]} 35... f4 {[%clk 0:00:14.5]} 36. Nce4+ {[%clk
0:01:05.5]} 36... Kf5 {[%clk 0:00:13.3]} 37. Rc7 {[%clk 0:01:01.3]} 37... Rd8
{[%clk 0:00:06.1]} 38. Rxg7 {[%clk 0:00:53.7]} 38... Rd2 {[%clk 0:00:01.5]} 39.
Rf7+ {[%clk 0:00:53.5]} 1-0

[Event "Betsys MČR v online bleskovém šachu 2021"]
[Site "Chess.com"]
[Date "2021.04.17"]
[Round "8"]
[White "Miky2610"]
[Black "kalcs"]
[Result "0-1"]
[WhiteElo "1824"]
[BlackElo "2078"]
[TimeControl "180+1"]
[EndTime "10:20:53 PDT"]
[Termination "Uživatel kalcs zvítězil matem"]

1. c4 {[%clk 0:03:00.5]} 1... Nf6 {[%clk 0:02:57.4]} 2. Nc3 {[%clk 0:03:00.5]}
2... d6 {[%clk 0:02:57.2]} 3. g3 {[%clk 0:03:00.5]} 3... g6 {[%clk 0:02:57.2]}
4. Bg2 {[%clk 0:03:00.8]} 4... Bg7 {[%clk 0:02:57.2]} 5. Nf3 {[%clk 0:03:01]}
5... O-O {[%clk 0:02:56.9]} 6. O-O {[%clk 0:03:01.1]} 6... c5 {[%clk 0:02:46.1]}
7. e3 {[%clk 0:03:01]} 7... Na6 {[%clk 0:02:43]} 8. a3 {[%clk 0:02:59.9]} 8...
Rb8 {[%clk 0:02:38.9]} 9. d4 {[%clk 0:02:59.2]} 9... Nc7 {[%clk 0:02:34.6]} 10.
b4 {[%clk 0:02:54.5]} 10... cxd4 {[%clk 0:02:04.4]} 11. exd4 {[%clk 0:02:49.5]}
11... Bg4 {[%clk 0:02:00.7]} 12. Bb2 {[%clk 0:02:45.3]} 12... Qc8 {[%clk
0:01:41.1]} 13. Re1 {[%clk 0:02:38.4]} 13... Re8 {[%clk 0:01:39.7]} 14. Qd3
{[%clk 0:02:37]} 14... Bf5 {[%clk 0:01:30.5]} 15. Qe3 {[%clk 0:02:31.4]} 15...
Ne6 {[%clk 0:01:24.6]} 16. c5 {[%clk 0:02:25.3]} 16... Ng4 {[%clk 0:01:14.2]}
17. Qe2 {[%clk 0:02:17.6]} 17... Nxd4 {[%clk 0:01:05]} 18. Nxd4 {[%clk 0:02:04]}
18... Bxd4 {[%clk 0:01:04.1]} 19. Rad1 {[%clk 0:02:00.7]} 19... Bxf2+ {[%clk
0:01:00.1]} 20. Kh1 {[%clk 0:01:50.9]} 20... dxc5 {[%clk 0:00:58.4]} 21. Rf1
{[%clk 0:01:40.5]} 21... Bd4 {[%clk 0:00:55.7]} 22. bxc5 {[%clk 0:01:32.1]}
22... Bxc5 {[%clk 0:00:37]} 23. Rd2 {[%clk 0:01:08.8]} 23... Ne3 {[%clk
0:00:35.6]} 24. Rf3 {[%clk 0:01:01.1]} 24... Nxg2 {[%clk 0:00:34.7]} 25. Kxg2
{[%clk 0:00:57.1]} 25... Bg4 {[%clk 0:00:34.5]} 26. Qe5 {[%clk 0:00:45.2]} 26...
Qc6 {[%clk 0:00:25.1]} 27. Ne4 {[%clk 0:00:39.9]} 27... Bxf3+ {[%clk 0:00:22.7]}
28. Kh3 {[%clk 0:00:35.3]} 28... f6 {[%clk 0:00:21.8]} 29. Qxc5 {[%clk
0:00:17.7]} 29... Qe6+ {[%clk 0:00:18.7]} 30. Kh4 {[%clk 0:00:14.1]} 30... Qg4#
{[%clk 0:00:18.6]} 0-1